lending/lending_fUSD_20260110
["ID","MTS","AMOUNT","RATE_DAILY","PERIOD"]
[401258504,1768079320279,-500.0,0.00016467,2]
[401258505,1768079320305,-500.0,0.00016467,2]
[401258506,1768079320340,-314.44792646,0.00016467,2]
[401258507,1768079320366,-500.0,0.00016467,2]
[401258508,1768079320389,-500.0,0.00016467,2]
[401258509,1768079320415,-500.0,0.00016467,2]
[401258510,1768079320439,-500.0,0.00016467,2]
[401258511,1768079320463,-500.0,0.00016467,2]
[401258512,1768079320487,-500.0,0.00016467,2]
[401258513,1768079320510,-500.0,0.00016467,2]
[401258514,1768079320535,-500.0,0.00016467,2]
[401258515,1768079320560,-500.0,0.00016467,2]
[401258516,1768079320584,-500.0,0.00016467,2]
[401258517,1768079320609,-500.0,0.00016467,2]
[401258518,1768079320634,-500.0,0.00016467,2]
[401258519,1768079320659,-500.0,0.00016467,2]
[401258520,1768079320683,-500.0,0.00016467,2]
[401258521,1768079320706,-500.0,0.00016467,2]
[401258522,1768079320730,-500.0,0.00016467,2]
[401258523,1768079320756,-2705.0,0.00016467,2]
[401258524,1768079320783,-1000000.0,0.00016467,2]
[401258525,1768079320807,-150.0,0.00016477,2]
[401258526,1768079320833,-150.0,0.00016484,2]
[401258527,1768079320860,-250.0,0.00016486,2]
[401258528,1768079320884,-195.0,0.00016486,2]
[401258529,1768079320908,-195.0,0.00016486,2]
[401258530,1768079320931,-247.65343149,0.00016486,2]
[401258531,1768079320955,-500.0,0.00016492,2]
[401258532,1768079320979,-500.0,0.00016492,2]
[401258533,1768079321004,-150.0,0.00016513,2]
[401258534,1768079321029,-150.0,0.00016521,2]
[401258535,1768079321054,-150.0,0.00016537,2]
[401258536,1768079321079,-8706.57974539,0.00016546,2]
[401258537,1768079321103,-9841.61942569,0.00016554,2]
[401258538,1768079321127,-150.0,0.0001656,2]
[401258539,1768079321151,-150.0,0.0001656,2]
[401258540,1768079321175,-3240.0,0.00016564,2]
[401258541,1768079321199,-9537.1,0.00016567,2]
[401258542,1768079321224,-150.0,0.00016579,2]
[401258543,1768079321249,-150.0,0.00016586,2]
[401258544,1768079321277,-150.0,0.00016586,2]
[401258545,1768079321301,-150.0,0.00016591,2]
[401258546,1768079321325,-150.0,0.00016615,2]
[401258547,1768079321350,-150.0,0.0001665,2]
[401258548,1768079321376,-150.0,0.0001665,2]
[401258549,1768079321401,-150.0,0.0001665,2]
[401258550,1768079321426,-150.0,0.0001667,2]
[401258551,1768079321454,-150.0,0.00016674,2]
[401258552,1768079321479,-150.0,0.00016714,2]
[401258553,1768079321503,-150.0,0.00016714,2]
[401258554,1768079321529,-8706.57974539,0.00016715,2]
[401258555,1768079321553,-162.0,0.0001672,2]
[401258556,1768079321578,-834.0,0.0001672,2]
[401258557,1768079321602,-9841.61942569,0.00016722,2]
[401258558,1768079321628,-166.66,0.0001673,2]
[401258559,1768079321653,-993.73,0.00016732,2]
[401258560,1768079321678,-150.0,0.00016748,2]
[401258561,1768079321702,-150.0,0.00016754,2]
[401258562,1768079321726,-150.0,0.00016762,2]
[401258563,1768079321750,-150.0,0.00016768,2]
[401258564,1768079321824,-150.0,0.00016779,2]
[401258565,1768079321848,-952.21354006,0.00016782,2]
[401258566,1768079321872,-2000.0,0.00016816,2]
[401258567,1768079321897,-150.0,0.00016826,2]
[401258568,1768079321920,-150.0,0.00016843,2]
[401258569,1768079321944,-150.0,0.00016843,2]
[401258570,1768079321968,-150.0,0.00016863,2]
[401258571,1768079321991,-150.0,0.00016875,2]
[401258572,1768079322015,-8706.57974539,0.00016885,2]
[401258573,1768079322039,-9841.61942569,0.00016891,2]
[401258574,1768079322063,-150.0,0.00016892,2]
[401258575,1768079322088,-1096.9,0.00016893,2]
[401258576,1768079322112,-150.0,0.00016904,2]
[401258577,1768079322137,-150.0,0.00016907,2]
[401258578,1768079322162,-150.0,0.0001692,2]
[401258579,1768079322188,-150.0,0.0001692,2]
[401258580,1768079322215,-150.0,0.00016958,2]
[401258581,1768079322241,-150.0,0.00016971,2]
[401258582,1768079322267,-150.0,0.00016971,2]
[401258583,1768079322294,-150.0,0.00016983,2]
[401258584,1768079322317,-193751.04,0.00016986,2]
[401258585,1768079322341,-150.0,0.00016987,2]
[401258586,1768079322366,-993.73,0.00017005,2]
[401258587,1768079322390,-200.0,0.00017006,2]
[401258588,1768079322414,-150.0,0.00017031,2]
[401258589,1768079322440,-150.0,0.00017036,2]
[401258590,1768079322466,-150.0,0.00017053,2]
[401258591,1768079322490,-8706.57974539,0.00017054,2]
[401258592,1768079322514,-9841.61942569,0.00017059,2]
[401258593,1768079322538,-166.66,0.00017061,2]
[401258594,1768079322562,-150.0,0.00017061,2]
[401258595,1768079322585,-150.0,0.000171,2]
[401258596,1768079322609,-150.0,0.000171,2]
[401258597,1768079322634,-150.0,0.000171,2]
[401258598,1768079322659,-150.0,0.000171,2]
[401258599,1768079322684,-150.0,0.000171,2]
[401258600,1768079322708,-150.0,0.00017139,2]
[401258601,1768079322736,-150.0,0.00017147,2]
[401258602,1768079322764,-150.0,0.00017164,2]
[401258603,1768079322788,-150.0,0.00017169,2]
[401258604,1768079322812,-420.0,0.00017192,2]
[401258605,1768079322836,-162.0,0.000172,2]
[401258606,1768079322860,-150.0,0.00017212,2]
[401258607,1768079322884,-150.0,0.00017217,2]
[401258608,1768079322909,-8706.57974539,0.00017223,2]
[401258609,1768079322934,-9841.61942569,0.00017227,2]
[401258610,1768079322960,-150.0,0.00017229,2]
[401258611,1768079322985,-150.0,0.00017229,2]
[401258612,1768079323009,-150.0,0.00017242,2]
[401258613,1768079323033,-993.73,0.00017279,2]
[401258614,1768079323057,-150.0,0.0001728,2]
[401258615,1768079323082,-150.0,0.0001728,2]
[401258616,1768079323106,-150.0,0.00017293,2]
[401258617,1768079323131,-150.0,0.00017296,2]
[401258618,1768079323155,-150.0,0.00017308,2]
[401258619,1768079323179,-150.0,0.00017325,2]
[401258620,1768079323203,-150.0,0.00017337,2]
[401258621,1768079323227,-150.0,0.00017357,2]
[401258622,1768079323254,-150.0,0.00017357,2]
[401258623,1768079323282,-150.0,0.00017362,2]
[401258624,1768079323306,-150.0,0.00017362,2]
[401258625,1768079323331,-150.0,0.00017362,2]
[401258626,1768079323356,-150.0,0.00017362,2]
[401258627,1768079323380,-150.0,0.00017362,2]
[401258628,1768079323404,-150.0,0.00017362,2]
[401258629,1768079323429,-150.0,0.00017362,2]
[401258630,1768079323454,-4820.0,0.00017362,2]
[401258631,1768079323479,-1330.0,0.00017362,2]
[401258632,1768079323503,-1405.0,0.00017362,2]
[401258633,1768079323527,-2437.0,0.00017362,2]
[401258634,1768079323551,-3468.0,0.00017362,2]
[401258635,1768079323576,-500.0,0.00017364,2]
[401258636,1768079323602,-150.0,0.00017374,2]
[401258637,1768079323629,-166.66,0.00017392,2]
[401258638,1768079323655,-8706.57974539,0.00017392,2]
[401258639,1768079323681,-9841.61942569,0.00017395,2]
[401258640,1768079323707,-150.0,0.00017421,2]
[401258641,1768079323732,-150.0,0.00017432,2]
[401258642,1768079323757,-150.0,0.00017437,2]
[401258643,1768079323782,-150.0,0.00017446,2]
[401258644,1768079323805,-333.83,0.00017449,2]
[401258645,1768079323830,-150.0,0.00017452,2]
[401258646,1768079323853,-158.68188667,0.00017472,2]
[401258647,1768079323876,-1266.0,0.00017476,2]
[401258648,1768079323899,-505.0,0.00017476,2]
[401258649,1768079323923,-518.0,0.00017476,2]
[401258650,1768079323946,-6554.0,0.00017476,2]
[401258651,1768079323970,-914.0,0.00017476,2]
[401258652,1768079323993,-1201.0,0.00017476,2]
[401258653,1768079324018,-150.0,0.00017486,2]
[401258654,1768079324042,-150.0,0.00017486,2]
[401258655,1768079324066,-2000.0,0.000175,2]
[401258656,1768079324093,-150.0,0.00017526,2]
[401258657,1768079324120,-150.0,0.0001753,2]
[401258658,1768079324147,-150.0,0.0001755,2]
[401258659,1768079324172,-150.0,0.0001755,2]
[401258660,1768079324311,-150.0,0.0001755,2]
[401258661,1768079324338,-993.73,0.00017553,2]
[401258662,1768079324364,-8706.57974539,0.00017562,2]
[401258663,1768079324389,-9841.61942569,0.00017564,2]
[401258664,1768079324415,-150.0,0.00017585,2]
[401258665,1768079324439,-150.0,0.000176,2]
[401258666,1768079324464,-150.0,0.00017609,2]
[401258667,1768079324491,-150.0,0.00017614,2]
[401258668,1768079324516,-150.0,0.00017614,2]
[401258669,1768079324542,-150.0,0.00017621,2]
[401258670,1768079324565,-150.0,0.0001764,2]
[401258671,1768079324590,-150.0,0.0001764,2]
[401258672,1768079324615,-150.0,0.00017662,2]
[401258673,1768079324638,-150.0,0.00017679,2]
[401258674,1768079324662,-162.0,0.0001768,2]
[401258675,1768079324685,-162.0,0.0001768,2]
[401258676,1768079324708,-827.0,0.0001768,2]
[401258677,1768079324733,-150.0,0.00017687,2]
[401258678,1768079324759,-150.0,0.00017716,2]
[401258679,1768079324789,-150.0,0.00017723,2]
[401258680,1768079324814,-8706.57974539,0.00017731,2]
[401258681,1768079324839,-9841.61942569,0.00017732,2]
[401258682,1768079324864,-1000.0,0.00017737,2]
[401258683,1768079324887,-150.0,0.00017743,2]
[401258684,1768079324911,-150.0,0.00017743,2]
[401258685,1768079324936,-616.50589084,0.00017743,2]
[401258686,1768079324960,-1000.0,0.00017755,2]
[401258687,1768079324986,-1000.0,0.0001776,2]
[401258688,1768079325013,-150.0,0.00017765,2]
[401258689,1768079325038,-150.0,0.00017775,2]
[401258690,1768079325063,-1000.0,0.00017779,2]
[401258691,1768079325089,-1000.0,0.00017794,2]
[401258692,1768079325113,-150.0,0.000178,2]
[401258693,1768079325139,-150.0,0.00017807,2]
[401258694,1768079325166,-150.0,0.00017811,2]
[401258695,1768079325190,-500.0,0.00017818,2]
[401258696,1768079325215,-500.0,0.00017818,2]
[401258697,1768079325243,-500.0,0.00017818,2]
[401258698,1768079325267,-500.0,0.00017818,2]
[401258699,1768079325291,-500.0,0.00017818,2]
[401258700,1768079325319,-500.0,0.00017818,2]
[401258701,1768079325345,-500.0,0.00017819,2]
[401258702,1768079325371,-500.0,0.00017819,2]
[401258703,1768079325398,-2420.50381,0.0001782,2]
[401258704,1768079325422,-2420.50382,0.0001782,2]
[401258705,1768079325447,-1000.0,0.00017827,2]
[401258706,1768079325472,-993.73,0.00017827,2]
[401258707,1768079325498,-2420.50382,0.0001783,2]
[401258708,1768079325525,-1000.0,0.00017841,2]
[401258709,1768079325553,-1000.0,0.00017842,2]
[401258710,1768079325579,-150.0,0.00017843,2]
[401258711,1768079325603,-200.0,0.00017856,2]
[401258712,1768079325629,-2420.50382,0.0001786,2]
[401258713,1768079325654,-150.0,0.00017862,2]
[401258714,1768079325679,-1000.0,0.00017868,2]
[401258715,1768079325703,-1000.0,0.00017869,2]
[401258716,1768079325727,-150.0,0.00017871,2]
[401258717,1768079325751,-150.0,0.00017871,2]
[401258718,1768079325776,-2420.50382,0.0001788,2]
[401258719,1768079325802,-150.0,0.00017887,2]
[401258720,1768079325825,-1740.0035,0.00017899,2]
[401258721,1768079325851,-28752.3012,0.000179,2]
[401258722,1768079325877,-10000.0,0.000179,2]
[401258723,1768079325901,-150.0,0.000179,2]
[401258724,1768079325926,-181.49618348,0.000179,2]
[401258725,1768079325952,-9841.61942569,0.000179,2]
[401258726,1768079325979,-8706.57974539,0.000179,2]
[401258727,1768079326003,-5719.4937703,0.000179,2]
[401258728,1768079326028,-294.7401385,0.000179,2]
[401258729,1768079326052,-864.09133487,0.000179,2]
[401258730,1768079326078,-270.1062705,0.000179,3]
[401258731,1768079326103,-1000.0,0.00017905,2]
[401258732,1768079326128,-150.0,0.00017905,2]
[401258733,1768079326153,-2420.50382,0.0001791,2]
[401258734,1768079326179,-150.0,0.00017922,2]
[401258735,1768079326204,-1990.229,0.00017922,2]
[401258736,1768079326228,-1000.0,0.00017925,2]
[401258737,1768079326252,-150.0,0.00017936,2]
[401258738,1768079326278,-1000.0,0.00017937,2]
[401258739,1768079326543,-500.0,0.00017967,2]
[401258740,1768079326568,-500.0,0.00017967,2]
[401258741,1768079326595,-288.8563921,0.00017967,2]
[401258742,1768079326621,-225.65669469,0.00017973,2]
[401258743,1768079326646,-500.0,0.00017973,2]
[401258744,1768079326671,-500.0,0.00017973,2]
[401258745,1768079326700,-500.0,0.00017973,2]
[401258746,1768079326725,-500.0,0.00017973,2]
[401258747,1768079326750,-500.0,0.00017973,2]
[401258748,1768079326773,-500.0,0.00017973,2]
[401258749,1768079326798,-500.0,0.00017973,2]
[401258750,1768079326823,-500.0,0.00017973,2]
[401258751,1768079326848,-500.0,0.00017973,2]
[401258752,1768079326872,-500.0,0.00017973,2]
[401258753,1768079326897,-500.0,0.00017973,2]
[401258754,1768079326921,-500.0,0.00017973,2]
[401258755,1768079326945,-500.0,0.00017973,2]
[401258756,1768079326970,-500.0,0.00017973,2]
[401258757,1768079326995,-500.0,0.00017973,2]
[401258758,1768079327019,-952.21354006,0.0001799,2]
[401258759,1768079327044,-952.21354006,0.0001799,2]
[401258760,1768079327068,-500.0,0.00017998,2]
[401258761,1768079327093,-618.39502557,0.00017998,2]
[401258762,1768079327117,-500.0,0.00017998,2]
[401258763,1768079327143,-600.81,0.00017998,2]
[401258764,1768079327168,-1699.0456251,0.00017998,2]
[401258765,1768079327192,-500.0,0.00017998,2]
[401258766,1768079327216,-500.0,0.00017998,2]
[401258767,1768079327240,-206986.0327423,0.00017999,2]
[401258768,1768079327267,-27846.33877,0.00017999,2]
[401258769,1768079327292,-98155.390634,0.00017999,2]
[401258770,1768079327321,-8205.0829349,0.00017999,2]
[401258771,1768079327346,-500.0,0.00017999,2]
[401258772,1768079327371,-500.0,0.00017999,2]
[401258773,1768079327396,-460.58029054,0.00017999,2]
[401258774,1768079327421,-59633.80039,0.00017999,2]
[401258775,1768079327447,-500.0,0.00017999,2]
[401258776,1768079327473,-500.0,0.00017999,2]
[401258777,1768079327497,-500.0,0.00017999,2]
[401258778,1768079327521,-500.0,0.00017999,2]
[401258779,1768079327545,-500.0,0.00017999,2]
[401258780,1768079327570,-500.0,0.00017999,2]
[401258781,1768079327594,-500.0,0.00017999,2]
[401258782,1768079327618,-500.0,0.00017999,2]
[401258783,1768079327644,-500.0,0.00017999,2]
[401258784,1768079327672,-500.0,0.00017999,2]
[401258785,1768079327695,-500.0,0.00017999,2]
[401258786,1768079327721,-500.0,0.00017999,2]
[401258787,1768079327746,-500.0,0.00017999,2]
[401258788,1768079327770,-500.0,0.00017999,2]
[401258789,1768079327794,-500.0,0.00017999,2]
[401258790,1768079327818,-500.0,0.00017999,2]
[401258791,1768079327846,-395.65252229,0.00017999,2]
[401258792,1768079327873,-300.0,0.00017999,2]
[401258793,1768079327902,-300.0,0.00017999,2]
[401258794,1768079327930,-320.87822696,0.00017999,2]
[401258795,1768079327958,-500.0,0.00017999,2]
[401258796,1768079327985,-437.58562247,0.00017999,2]
[401258797,1768079328014,-300.0,0.00017999,2]
[401258798,1768079328042,-154.34791437,0.00018,2]
[401258799,1768079328069,-151.06129179,0.00018,2]
[401258800,1768079328098,-286.04821059,0.00018,2]
[401258801,1768079328129,-244.97032636,0.00018,2]
[401258802,1768079328163,-274.86810546,0.00018,2]
[401258803,1768079328189,-178.17676299,0.00018,2]
[401258804,1768079328216,-298.52493072,0.00018,2]
[401258805,1768079328299,-236.87153921,0.00018,2]
[401258806,1768079328326,-156.68286018,0.00018,2]
[401258807,1768079328352,-150.0,0.00018,2]
[401258808,1768079328379,-247.12115074,0.00018,2]
[401258809,1768079328410,-157.59943203,0.00018,2]
[401258810,1768079328436,-2018224.57778538,0.00018,2]
[401258811,1768079328463,-382807.21354992,0.00018,2]
[401258812,1768079328492,-111585.87503571,0.00018,2]
[401258813,1768079328519,-2643787.7631604,0.00018,2]
[401258814,1768079328544,-151.0,0.00018,2]
[401258815,1768079328570,-158.0,0.00018,2]
[401258816,1768079328595,-151.0,0.00018,2]
[401258817,1768079328620,-152.0,0.00018,2]
[401258818,1768079328646,-151.0,0.00018,2]
[401258819,1768079328676,-151.0,0.00018,2]
[401258820,1768079328701,-152.0,0.00018,2]
[401258821,1768079328727,-151.0,0.00018,2]
[401258822,1768079328751,-151.0,0.00018,2]
[401258823,1768079328775,-151.0,0.00018,2]
[401258824,1768079328800,-200.0,0.00018,2]
[401258825,1768079328824,-200.0,0.00018,2]
[401258826,1768079328848,-223.116641,0.00018,2]
[401258827,1768079328873,-223.116641,0.00018,2]
[401258828,1768079328897,-223.116641,0.00018,2]
[401258829,1768079328924,-223.116641,0.00018,2]
[401258830,1768079328949,-151.0,0.00018,2]
[401258831,1768079328975,-151.0,0.00018,2]
[401258832,1768079329001,-151.0,0.00018,2]
[401258833,1768079329027,-151.0,0.00018,2]
[401258834,1768079329059,-151.0,0.00018,2]
[401258835,1768079329084,-151.0,0.00018,2]
[401258836,1768079329108,-151.0,0.00018,2]
[401258837,1768079329136,-151.0,0.00018,2]
[401258838,1768079329163,-151.0,0.00018,2]
[401258839,1768079329188,-151.0,0.00018,2]
[401258840,1768079329212,-200.0,0.00018,2]
[401258841,1768079329237,-158.0,0.00018,2]
[401258842,1768079329262,-158.0,0.00018,2]
[401258843,1768079329286,-158.0,0.00018,2]
[401258844,1768079329319,-161.91818586,0.00018,2]
[401258845,1768079329346,-216.39656177,0.00018,2]
[401258846,1768079329371,-155.320767,0.00018,2]
[401258847,1768079329396,-288.687691,0.00018,2]
[401258848,1768079329423,-288.687691,0.00018,2]
[401258849,1768079329451,-288.687691,0.00018,2]
[401258850,1768079329481,-288.687691,0.00018,2]
[401258851,1768079329505,-288.687691,0.00018,2]
[401258852,1768079329531,-288.687691,0.00018,2]
[401258853,1768079329555,-685.053229,0.00018,2]
[401258854,1768079329580,-288.687691,0.00018,2]
[401258855,1768079329604,-685.053229,0.00018,2]
[401258856,1768079329629,-288.687691,0.00018,2]
[401258857,1768079329653,-685.053229,0.00018,2]
[401258858,1768079329677,-288.687691,0.00018,2]
[401258859,1768079329701,-685.053229,0.00018,2]
[401258860,1768079329726,-288.687691,0.00018,2]
[401258861,1768079329750,-685.053229,0.00018,2]
[401258862,1768079329776,-685.053229,0.00018,2]
[401258863,1768079329804,-288.687691,0.00018,2]
[401258864,1768079329828,-288.687691,0.00018,2]
[401258865,1768079329853,-685.053229,0.00018,2]
[401258866,1768079329879,-685.053229,0.00018,2]
[401258867,1768079329905,-685.053229,0.00018,2]
[401258868,1768079329929,-685.053229,0.00018,2]
[401258869,1768079329953,-685.053229,0.00018,2]
[401258870,1768079329978,-685.053229,0.00018,2]
[401258871,1768079330003,-151.0,0.00018,2]
[401258872,1768079330031,-151.0,0.00018,2]
[401258873,1768079330057,-252.723706,0.00018,2]
[401258874,1768079330083,-151.0,0.00018,2]
[401258875,1768079330107,-151.0,0.00018,2]
[401258876,1768079330132,-151.0,0.00018,2]
[401258877,1768079330160,-278.74552,0.00018,2]
[401258878,1768079330186,-151.0,0.00018,2]
[401258879,1768079330213,-151.0,0.00018,2]
[401258880,1768079330239,-151.0,0.00018,2]
[401258881,1768079330263,-151.0,0.00018,2]
[401258882,1768079330287,-151.0,0.00018,2]
[401258883,1768079330311,-154.119349,0.00018,2]
[401258884,1768079330337,-510.947712,0.00018,2]
[401258885,1768079330362,-510.947712,0.00018,2]
[401258886,1768079330388,-151.0,0.00018,2]
[401258887,1768079330414,-510.947712,0.00018,2]
[401258888,1768079330441,-151.0,0.00018,2]
[401258889,1768079330467,-151.0,0.00018,2]
[401258890,1768079330491,-510.947712,0.00018,2]
[401258891,1768079330515,-151.0,0.00018,2]
[401258892,1768079330540,-154.639707,0.00018,2]
[401258893,1768079330569,-151.0,0.00018,2]
[401258894,1768079330607,-240.116581,0.00018,2]
[401258895,1768079330631,-151.0,0.00018,2]
[401258896,1768079330656,-151.0,0.00018,2]
[401258897,1768079330680,-829.372755,0.00018,2]
[401258898,1768079330706,-151.0,0.00018,2]
[401258899,1768079330730,-829.372755,0.00018,2]
[401258900,1768079330760,-151.0,0.00018,2]
[401258901,1768079330909,-2420.50382,0.00018,2]
[401258902,1768079330935,-2420.50381,0.00018,2]
[401258903,1768079330960,-2420.50382,0.00018,2]
[401258904,1768079330987,-829.372755,0.00018,2]
[401258905,1768079331011,-2420.50382,0.00018,2]
[401258906,1768079331036,-151.0,0.00018,2]
[401258907,1768079331062,-829.372755,0.00018,2]
[401258908,1768079331087,-291.161837,0.00018,2]
[401258909,1768079331112,-163.576736,0.00018,2]
[401258910,1768079331138,-151.0,0.00018,2]
[401258911,1768079331162,-167.226676,0.00018,2]
[401258912,1768079331188,-151.0,0.00018,2]
[401258913,1768079331215,-151.0,0.00018,2]
[401258914,1768079331243,-151.0,0.00018,2]
[401258915,1768079331270,-151.0,0.00018,2]
[401258916,1768079331295,-151.0,0.00018,2]
[401258917,1768079331324,-151.0,0.00018,2]
[401258918,1768079331350,-151.0,0.00018,2]
[401258919,1768079331375,-151.0,0.00018,2]
[401258920,1768079331403,-161.616617,0.00018,2]
[401258921,1768079331431,-151.0,0.00018,2]
[401258922,1768079331457,-1982.5,0.00018,7]
[401258923,1768079331483,-163.508585,0.00018,2]
[401258924,1768079331507,-151.0,0.00018,2]
[401258925,1768079331533,-197.343206,0.00018,2]
[401258926,1768079331558,-151.0,0.00018,2]
[401258927,1768079331583,-151.0,0.00018,2]
[401258928,1768079331609,-151.0,0.00018,2]
[401258929,1768079331635,-151.0,0.00018,2]
[401258930,1768079331663,-151.0,0.00018,2]
[401258931,1768079331688,-993.73,0.00018101,2]
[401258932,1768079331712,-200.0,0.0001818,2]
[401258933,1768079331738,-834.0,0.0001822,2]
[401258934,1768079331763,-839.1,0.00018306,2]
[401258935,1768079331788,-5307.62,0.00018356,2]
[401258936,1768079331811,-200.0,0.00018362,2]
[401258937,1768079331835,-993.80209656,0.00018375,2]
[401258938,1768079331859,-162.0,0.000184,2]
[401258939,1768079331898,-834.0,0.000184,2]
[401258940,1768079331923,-979.0,0.000184,2]
[401258941,1768079331949,-306.0,0.000184,2]
[401258942,1768079331976,-852.0,0.000184,2]
[401258943,1768079332004,-166.66,0.00018437,2]
[401258944,1768079332031,-1000.0,0.00018521,2]
[401258945,1768079332057,-1000.0,0.00018521,2]
[401258946,1768079332083,-200.0,0.00018545,2]
[401258947,1768079332110,-236.44,0.00018584,2]
[401258948,1768079332136,-500.0,0.00018603,2]
[401258949,1768079332165,-162.0,0.0001872,2]
[401258950,1768079332190,-200.0,0.00018731,2]
[401258951,1768079332217,-587.0,0.00018802,2]
[401258952,1768079332244,-333.83,0.00018818,2]
[401258953,1768079332270,-177.9,0.00018945,2]
[401258954,1768079332300,-162.0,0.0001896,2]
[401258955,1768079332327,-166.66,0.00018975,2]
[401258956,1768079332352,-500.0,0.00019,7]
[401258957,1768079332380,-500.0,0.00019,7]
[401258958,1768079332408,-500.0,0.00019,7]
[401258959,1768079332434,-500.0,0.00019,7]
[401258960,1768079332462,-500.0,0.00019,7]
[401258961,1768079332488,-500.0,0.00019,7]
[401258962,1768079332513,-500.0,0.00019,7]
[401258963,1768079332538,-500.0,0.00019,7]
[401258964,1768079332564,-500.0,0.00019,7]
[401258965,1768079332590,-500.0,0.00019,7]
[401258966,1768079332619,-500.0,0.00019,7]
[401258967,1768079332647,-500.0,0.00019,7]
[401258968,1768079332679,-500.0,0.00019,7]
[401258969,1768079332706,-500.0,0.00019,7]
[401258970,1768079332734,-500.0,0.00019,7]
[401258971,1768079332764,-500.0,0.00019,7]
[401258972,1768079332793,-500.0,0.00019,7]
[401258973,1768079332821,-500.0,0.00019,7]
[401258974,1768079332851,-500.0,0.00019,7]
[401258975,1768079332879,-500.0,0.00019,7]
[401258976,1768079332907,-500.0,0.00019,7]
[401258977,1768079332933,-500.0,0.00019,7]
[401258978,1768079332960,-500.0,0.00019,7]
[401258979,1768079332987,-500.0,0.00019,7]
[401258980,1768079333013,-500.0,0.00019,7]
[401258981,1768079333039,-500.0,0.00019,7]
[401258982,1768079333065,-500.0,0.00019,7]
[401258983,1768079333092,-500.0,0.00019,7]
[401258984,1768079333117,-500.0,0.00019,7]
[401258985,1768079333485,-500.0,0.00019,7]
[401258986,1768079333511,-500.0,0.00019,7]
[401258987,1768079333536,-500.0,0.00019,7]
[401258988,1768079333562,-500.0,0.00019,7]
[401258989,1768079333587,-500.0,0.00019,7]
[401258990,1768079333613,-500.0,0.00019,7]
[401258991,1768079333638,-500.0,0.00019,7]
[401258992,1768079333664,-500.0,0.00019,7]
[401258993,1768079333689,-500.0,0.00019,7]
[401258994,1768079333714,-500.0,0.00019,7]
[401258995,1768079333739,-500.0,0.00019,7]
[401258996,1768079333764,-500.0,0.00019,7]
[401258997,1768079333788,-500.0,0.00019,7]
[401258998,1768079333814,-500.0,0.00019,7]
[401258999,1768079333839,-500.0,0.00019,7]
[401259000,1768079333864,-500.0,0.00019,7]
[401259001,1768079333890,-500.0,0.00019,7]
[401259002,1768079333916,-500.0,0.00019,7]
[401259003,1768079333941,-500.0,0.00019,7]